bitfinex/quotes_ETHUSD_20240715
["timestamp","ask_amount","ask_price","bid_price","bid_amount"]
[1721071299588,5.35345,3427.5,3425.2,2.91946]
[1721071299788,2.4358,3427.5,3426.2,2.91868]
[1721071300038,2.4358,3427.5,3425.7,3.0]
[1721071300251,2.4358,3427.5,3425.3,3.0]
[1721071300392,2.4358,3427.5,3425.1,3.0]
[1721071300393,2.67938,3427.5,3425.1,3.0]
[1721071300591,2.67938,3427.5,3425.9,2.91893]
[1721071300592,5.59696,3427.5,3425.9,2.91893]
[1721071300804,2.67938,3427.5,3425.9,2.91892]
[1721071301002,2.91834,3426.6,3423.9,2.92056]
[1721071301237,0.02782049,3427.4,3424.1,2.92042]
[1721071301238,2.91886,3426.0,3424.1,2.92042]
[1721071301490,2.67938,3427.5,3422.1,4.42215]
[1721071301491,2.4784,3425.1,3422.1,4.42215]
[1721071301691,2.4784,3425.1,3420.7,11.34751047]
[1721071301692,3.69,3424.9,3420.7,11.34751047]
[1721071302023,2.92091,3423.6,3422.3,2.92199]
[1721071302197,2.92106,3423.5,3420.9,2.9232]
[1721071302386,3.55,3424.8,3423.0,2.9214]
[1721071302387,7.24,3424.8,3423.0,2.9214]
[1721071302590,0.724,3424.7,3421.9,1.5]
[1721071302791,2.91981,3424.9,3423.5,2.9209]
[1721071303093,2.91981,3424.9,3421.7,36.769]
[1721071303094,2.92047,3424.1,3423.0,2.92138]
[1721071303296,2.91982,3424.9,3422.7,2.92165]
[1721071303297,2.92077,3423.8,3422.7,2.92165]
[1721071303620,2.92077,3423.8,3422.5,2.92182]
[1721071303790,2.92083,3423.7,3422.5,2.92182]
[1721071303992,2.92083,3423.7,3421.9,2.92231]
[1721071303993,2.92031,3424.3,3422.9,2.92149]
[1721071304295,2.4784,3425.1,3424.0,2.92051]
[1721071304492,2.4784,3425.1,3424.3,2.92029]
[1721071304922,2.4784,3425.1,3422.2,2.92205]
[1721071305092,2.4784,3425.1,3423.4,2.92101]
[1721071305093,2.91997,3424.7,3423.4,2.92101]
[1721071305294,2.3062,3424.9,3420.9,2.92313]
[1721071305494,2.3062,3424.9,3418.6,3.78612602]
[1721071305495,2.3062,3423.1,3420.4,2.92361]
[1721071305774,2.92142,3423.0,3421.3,2.92285]
[1721071306066,2.3062,3423.1,3420.2,2.92374]
[1721071306193,2.92198,3422.4,3419.9,2.92401]
[1721071306391,2.3062,3423.1,3420.3,2.9237]
[1721071306703,2.3062,3423.1,3420.6,2.92344]
[1721071306910,2.4295,3424.3,3422.4,2.9219]
[1721071307110,2.4295,3424.3,3423.1,2.92129]
[1721071307323,2.4295,3424.3,3421.8,2.92243]
[1721071307528,2.4295,3424.3,3423.1,2.92128]
[1721071307692,2.4295,3424.3,3423.2,2.92122]
[1721071307894,2.4295,3424.3,3423.5,2.92098]
[1721071308123,2.4295,3424.8,3422.8,5.92155]
[1721071308337,2.4295,3424.8,3424.3,2.92022]
[1721071308634,2.4295,3424.8,3424.4,2.92021]
[1721071308943,5.22927,3426.0,3424.8,2.91987]
[1721071309150,5.22927,3426.0,3423.5,3.0]
[1721071309151,2.3104,3426.0,3424.5,3.0]
[1721071309307,2.3104,3426.0,3425.3,2.91939]
[1721071309642,2.3104,3426.0,3424.9,3.0]
[1721071309844,2.3104,3426.0,3423.4,1.5]
[1721071309845,2.3104,3426.0,3424.2,3.0]
[1721071309996,2.3104,3426.0,3423.1,0.2947]
[1721071309997,2.9192,3425.6,3424.3,2.92022]
[1721071310315,2.3104,3426.0,3423.9,3.0]
[1721071310523,2.91935,3425.5,3424.0,2.92055]
[1721071310696,2.91935,3425.5,3423.5,3.0]
[1721071310697,2.91968,3425.1,3423.9,2.92064]
[1721071310908,2.3104,3426.0,3425.2,2.91951]
[1721071311248,2.3104,3426.0,3425.0,2.91962]
[1721071311556,2.3104,3426.0,3424.0,3.0]
[1721071311557,2.91904,3425.8,3424.4,2.92015]
[1721071311729,2.91904,3425.8,3424.9,2.91976]
[1721071311901,2.91904,3425.8,3424.5,2.92013]
[1721071312098,2.91904,3425.8,3424.8,2.91983]
[1721071312330,2.91904,3425.8,3424.9,2.91978]
[1721071312532,2.91894,3425.9,3425.0,0.09233919]
[1721071312714,0.814803,3425.9,3425.0,0.09233919]
[1721071312934,3.46904,3425.8,3425.0,0.09233919]
[1721071313139,2.3104,3426.0,3424.9,2.91978]
[1721071313320,2.3104,3426.0,3425.1,2.91959]
[1721071313526,2.3104,3426.0,3423.3,2.92109]
[1721071313704,5.22926,3426.0,3423.4,0.09238235]
[1721071313908,5.22926,3426.0,3423.5,35.0]
[1721071314254,2.3104,3426.0,3423.6,0.09237695]
[1721071314463,2.3179,3426.9,3426.2,2.91867]
[1721071314675,2.3179,3426.9,3424.2,3.101]
[1721071314676,2.3179,3426.9,3424.9,2.91978]
[1721071314821,2.3179,3426.9,3425.0,3.09233919]
[1721071315015,2.92047012,3428.0,3427.1,2.91789]
[1721071315016,2.3179,3427.8,3427.1,2.91789]
[1721071315235,2.91757,3427.5,3426.2,2.9186]
[1721071315534,2.91757,3427.5,3425.1,0.0923365]
[1721071315535,2.91792,3427.1,3425.6,3.0]
[1721071315727,2.56114701,3427.8,3425.7,0.09232032]
[1721071315728,2.91769,3427.4,3425.7,0.09232032]
[1721071315937,2.91769,3427.4,3426.3,2.91858]
[1721071316141,2.91769,3427.4,3425.2,2.91953]
[1721071316142,2.3179,3427.8,3427.4,2.91765]
[1721071316430,2.3179,3427.8,3427.7,5.8348]
[1721071316640,2.3179,3428.9,3427.5,3.00977184]
[1721071316928,2.91663,3428.7,3427.6,0.09226915]
[1721071317143,0.0511825,3429.7,3428.5,2.91672]
[1721071317463,0.0511825,3429.7,3428.5,3.00896493]
[1721071317629,0.0511825,3429.7,3428.5,0.09224493]
[1721071317830,0.0511825,3429.7,3428.9,2.91638]
[1721071318029,0.0511825,3429.7,3428.9,3.00861417]
[1721071318453,0.0511825,3429.7,3428.9,11.84137417]
[1721071318746,0.0511825,3429.7,3429.6,5.83158]
[1721071318944,2.5e-06,3429.9,3429.8,11.66248]
[1721071319172,2.5e-06,3429.9,3429.8,8.83906996]
[1721071319341,0.1718041,3433.5,3432.4,8.74023]
[1721071319549,0.1718041,3433.5,3433.4,5.82512]
[1721071319773,0.1718041,3433.5,3430.3,2.74854204]
[1721071319774,2.3206,3433.4,3431.5,0.4375302]
[1721071319953,2.3206,3433.4,3431.6,0.0921616]
[1721071319954,0.24924041,3433.3,3431.6,0.0921616]
[1721071320539,0.24924041,3433.3,3429.4,4.25005777]
[1721071320540,2.9135,3432.3,3430.8,2.91473]
[1721071320736,2.91384,3431.9,3430.9,0.0921804]
[1721071320983,3.69,3432.5,3430.9,0.0921804]
[1721071320984,2.91379,3432.0,3430.9,0.0921804]
[1721071321136,2.91386,3431.9,3430.9,0.0921804]
[1721071321347,3.0843241,3433.5,3432.4,2.91337]
[1721071321348,0.1718041,3433.5,3432.4,2.91337]
[1721071321668,0.1718041,3433.5,3432.8,2.91306]
[1721071322005,0.1718041,3433.5,3431.1,2.91443]
[1721071322006,0.33991643,3437.3,3434.0,2.3806]
[1721071322282,0.33991643,3437.3,3433.0,3.101]
[1721071322283,2.9611225,3436.5,3434.1,0.0920945]
[1721071322494,0.0511825,3436.5,3435.0,2.9112]
[1721071322640,0.0511825,3436.5,3436.1,2.91021]
[1721071322840,3.29e-06,3436.3,3436.2,0.09203822]
[1721071323098,3.29e-06,3436.3,3433.4,1.5]
[1721071323239,0.00743807,3436.5,3435.8,2.9105]
[1721071323444,0.00743807,3436.5,3435.9,0.09204626]
[1721071323806,6.43e-06,3437.3,3435.9,0.09204626]
[1721071323944,2.4603,3437.9,3435.9,0.09204626]
[1721071324140,2.90955,3437.0,3435.9,0.09204626]
[1721071324366,2.90924,3437.4,3435.9,0.09204626]
[1721071324714,1.5,3437.5,3434.7,2.91141]
[1721071324985,2.3239,3435.9,3433.7,2.91223]
[1721071325185,6.59958,3437.0,3431.6,2.91407]
[1721071325186,2.2645,3433.9,3431.6,2.91407]
[1721071325342,2.91241,3433.6,3432.1,2.91359]
[1721071325541,2.2645,3433.9,3432.2,0.09214549]
[1721071325868,2.2645,3433.9,3430.1,2.91535]
[1721071325869,5.30054,3432.3,3430.4,2.91508]
[1721071326185,5.30054,3432.3,3429.1,2.91618]
[1721071326186,2.387,3433.9,3431.0,2.91454]
[1721071326395,2.387,3432.3,3431.1,0.09217503]
[1721071326762,2.91403,3431.7,3431.1,0.09217503]
[1721071327140,2.91375,3432.0,3431.1,0.09217503]
[1721071327346,2.91492,3430.7,3429.1,2.91619]
[1721071327562,2.91417,3431.6,3430.4,0.01455709]
[1721071327841,2.91496,3430.6,3430.4,0.01455709]
[1721071328043,2.387,3430.5,3430.4,0.01455709]
[1721071328470,2.387,3430.5,3427.2,2.91779]
[1721071328471,2.91642,3428.9,3427.2,2.91779]
[1721071328681,5.937,3430.5,3426.9,37.91801]
[1721071328682,2.387,3430.5,3426.9,37.91801]
[1721071328866,2.91584,3429.6,3426.9,35.0]
[1721071329073,2.91518,3430.4,3427.4,2.91765]
[1721071329397,2.91579,3429.6,3426.1,2.91871]
[1721071329542,2.387,3430.5,3426.3,1.5]
[1721071329543,2.91617,3429.2,3426.3,1.5]
[1721071329760,2.91617,3429.2,3425.1,2.5722]
[1721071329761,2.91576,3429.7,3427.8,2.9173]
[1721071329964,2.91604,3429.3,3426.6,35.0]
[1721071330165,2.91613,3429.2,3427.7,2.91736]
[1721071330421,2.91613,3429.2,3427.8,2.91732]
[1721071330713,2.91613,3429.2,3427.4,2.9176]
[1721071330714,3.207743,3429.2,3427.4,2.9176]
[1721071331023,3.207743,3429.2,3426.6,37.91834]
[1721071331024,2.91628,3429.1,3426.7,2.91825]
[1721071331325,2.91522,3430.3,3428.7,2.91652]
[1721071331462,2.387,3430.5,3428.7,2.91654]
[1721071331667,2.91537,3430.1,3428.8,2.91644]
[1721071331902,2.91547,3430.0,3428.4,2.91676]
[1721071332122,2.91547,3430.0,3428.8,2.9164]
[1721071332424,2.91532,3430.2,3428.7,2.91653]
[1721071332711,2.91555,3429.9,3428.8,2.91645]
[1721071332914,0.2387,3430.4,3428.8,2.91645]
[1721071333062,0.2387,3430.4,3427.6,3.0]
[1721071333265,0.26257,3430.3,3428.1,2.91698]
[1721071333581,2.91658,3428.7,3427.3,2.9177]
[1721071333806,2.91537,3430.1,3427.0,35.0]
[1721071334120,2.9164,3428.9,3427.5,2.91753]
[1721071334340,3.26257,3430.3,3427.1,2.91788]
[1721071334341,3.17778,3430.3,3427.1,2.91788]
[1721071334609,2.91528,3430.2,3428.9,2.91638]
[1721071334848,2.91539,3430.1,3428.9,2.91633]
[1721071334966,2.91582,3429.6,3426.7,2.91822]
[1721071335165,2.916,3429.4,3427.8,2.91729]
[1721071335416,2.91624,3429.1,3427.7,2.91739]
[1721071335769,6.01642,3430.1,3426.7,2.91817]
[1721071336001,2.91627,3429.1,3427.6,2.91749]
[1721071336203,3.0,3430.0,3427.7,2.9174]
[1721071336511,2.91603,3429.4,3427.7,2.9174]
[1721071336812,2.91603,3429.4,3426.3,2.91855]
[1721071336813,0.291603,3429.4,3427.8,2.91731]
[1721071337113,2.91613,3429.2,3427.5,2.91752]
[1721071337276,2.91639,3428.9,3427.6,2.91749]
[1721071337485,3.69,3431.5,3427.7,3.0]
[1721071337685,3.69,3431.5,3427.2,6.01883]
[1721071338001,3.69,3431.5,3428.9,2.91632]
[1721071338002,2.6257,3430.5,3428.9,2.91632]
[1721071338208,2.91545,3430.0,3428.9,2.91632]
[1721071338517,2.91545,3430.0,3428.6,2.91662]
[1721071338518,2.91546,3430.0,3428.6,2.91662]
[1721071338736,2.387,3430.5,3429.1,2.9162]
[1721071338936,2.387,3430.5,3427.3,6.101]
[1721071338937,2.91415,3431.6,3428.3,6.101]
[1721071339225,2.4106,3432.0,3429.2,38.101]
[1721071339373,2.4106,3432.0,3431.0,2.91459]
[1721071339581,2.4106,3432.0,3430.3,3.0]
[1721071339774,2.4106,3432.0,3430.2,2.91524]
[1721071340087,2.91409,3431.6,3430.2,2.91524]
[1721071340286,2.91452,3431.1,3429.3,2.91604]
[1721071340519,2.91435,3431.3,3429.8,2.91556]
[1721071340817,0.24106,3431.9,3429.5,2.91582]
[1721071340818,2.91454,3431.1,3429.5,2.91582]
[1721071341019,2.91497,3430.6,3428.6,2.91662]
[1721071341230,2.91433,3431.4,3427.5,2.91749]
[1721071341231,2.4106,3430.2,3427.5,2.91749]
[1721071341436,2.4106,3430.2,3427.6,35.0]
[1721071341723,2.4106,3430.2,3429.2,2.91612]
[1721071341887,2.4106,3430.2,3428.1,2.917]
[1721071342218,2.4106,3430.2,3429.4,2.91588]
[1721071342429,2.4106,3430.2,3428.5,2.91672]
[1721071342731,2.4106,3430.2,3427.1,2.75046585]
[1721071342732,2.4106,3430.2,3429.1,2.91613]
[1721071342872,2.4106,3430.2,3429.3,2.91603]
[1721071343073,2.4106,3430.2,3429.6,2.9157]
[1721071343315,2.4106,3430.2,3428.3,2.91687]
[1721071343650,2.91488,3430.7,3428.0,35.0]
[1721071343651,2.3663,3430.7,3428.0,1.5]
[1721071343922,2.3663,3430.7,3429.9,2.91549]
[1721071344129,2.3663,3430.7,3430.0,2.91542]
[1721071344616,2.3663,3430.7,3429.0,3.0]
[1721071344617,2.3663,3430.7,3430.5,2.91498]
[1721071344940,2.91409,3431.6,3430.3,2.91519]
[1721071345074,2.91342,3432.4,3429.0,3.0]
[1721071345075,2.91348,3432.4,3429.8,35.0]
[1721071345279,2.91374,3432.1,3430.9,2.91468]
[1721071345512,2.91374,3432.1,3429.8,35.0]
[1721071345513,0.582722,3432.1,3429.2,2.7554728]
[1721071345677,2.9135,3432.3,3429.9,2.91552]
[1721071346015,2.9135,3432.3,3427.5,2.4459]
[1721071346016,1.5,3432.0,3429.0,2.91628]
[1721071346221,1.5,3432.0,3428.3,2.75529595]
[1721071346222,2.91501,3430.6,3429.1,2.91615]
[1721071346518,2.91403,3431.7,3428.8,1.5]
[1721071346672,2.91368,3432.1,3429.3,2.91601]
[1721071346673,2.91469,3430.9,3429.3,2.91601]
[1721071346877,3.69,3432.3,3428.5,35.0]
[1721071346878,2.91362,3432.2,3428.6,0.50438814]
[1721071347076,2.91484,3430.8,3428.8,2.91641]
[1721071347322,2.91397,3431.8,3427.8,4.25529595]
[1721071347505,2.91448,3431.2,3428.0,1.5]
[1721071347814,2.91472,3430.9,3428.1,2.91706]
[1721071348023,2.3115,3431.4,3428.1,1.5]
[1721071348189,2.91513,3430.4,3428.5,2.91669]
[1721071348376,3.14557,3431.3,3429.0,2.91628]
[1721071348946,2.91552,3430.0,3428.7,2.91648]
[1721071349256,2.91608,3429.3,3428.0,2.91707]
[1721071349392,5.83219,3429.3,3428.3,2.91688]
[1721071349597,5.83219,3429.3,3428.1,2.91704]
[1721071349803,2.91614,3429.2,3427.7,2.91733]
[1721071350209,2.91614,3429.2,3428.1,2.91706]
[1721071350436,2.91599,3429.4,3428.3,2.91688]
[1721071350659,2.3946,3430.8,3427.4,0.2947]
[1721071350943,2.3946,3430.8,3429.7,2.91568]
[1721071351099,5.30939,3430.8,3427.8,2.7580998]
[1721071351303,5.30937,3430.8,3429.5,2.91579]
[1721071351657,5.30937,3430.8,3428.0,3.26260361]
[1721071351658,2.3946,3430.8,3428.0,3.26260361]
[1721071351827,2.91498,3430.6,3429.2,2.9161]
[1721071352025,2.91498,3430.6,3428.0,3.0]
[1721071352026,2.91516,3430.4,3428.2,2.91693]
[1721071352244,2.91546,3430.0,3428.6,2.91661]
[1721071352527,2.91613,3429.2,3428.2,2.91691]
[1721071352733,2.91597,3429.4,3428.0,2.91714]
[1721071352734,2.91622,3429.1,3428.0,2.91714]
[1721071352913,2.91622,3429.1,3427.8,2.91731]
[1721071353114,2.91622,3429.1,3427.9,2.91722]
[1721071353421,2.91597,3429.4,3428.2,2.91696]
[1721071353753,4.41415,3431.6,3427.2,35.0]
[1721071353754,5.831,3430.0,3428.7,2.91652]
[1721071353963,2.91503,3430.5,3427.8,2.75815778]
[1721071354242,2.91503,3430.5,3429.2,2.91612]
[1721071354463,2.91495,3430.6,3429.5,2.91584]
[1721071354641,5.82996,3430.6,3429.3,2.91603]
[1721071354978,2.9153,3430.2,3429.1,2.75815778]
[1721071355103,2.3946,3430.8,3428.7,2.75625871]
[1721071355104,0.822456,3430.6,3428.7,2.75625871]
[1721071355305,2.91595,3429.5,3428.4,2.9168]
[1721071355546,3.737406,3430.6,3428.1,2.91706]
[1721071355547,2.91622,3429.1,3428.1,2.91706]
[1721071355756,2.91622,3429.1,3427.9,2.9172]
[1721071356044,2.91631,3429.0,3428.0,0.50470178]
[1721071356283,2.91641,3428.9,3428.1,0.50470178]
[1721071356465,5.36054,3429.2,3428.2,0.05833126]
[1721071356466,2.91653,3428.8,3428.2,0.05833126]
[1721071356642,2.4444,3429.2,3427.3,2.75900967]
[1721071356643,2.91693,3428.3,3427.3,2.75900967]
[1721071356843,2.4444,3429.2,3427.4,0.50479927]
[1721071356844,2.917,3428.2,3427.4,0.50479927]
[1721071357039,2.4444,3429.2,3427.0,2.91797]
[1721071357040,0.05767913,3428.1,3427.0,2.75900967]
[1721071357348,2.91659,3428.7,3426.5,2.91841]
[1721071357349,2.91764,3427.5,3426.5,2.91841]
[1721071357516,2.91764,3427.5,3425.0,1.5]
[1721071357517,5.36325,3426.0,3425.4,2.75900967]
[1721071357706,5.36325,3426.0,3424.2,1.1694]
[1721071357707,2.9191,3425.8,3424.3,0.50500154]
[1721071357949,2.9191,3425.8,3424.5,2.92011]
[1721071357950,2.91918,3425.7,3424.5,2.92011]
[1721071358177,2.91926,3425.6,3424.0,2.92054]
[1721071358306,2.4444,3426.0,3423.8,2.769544]
[1721071358502,2.4444,3426.0,3424.7,2.91992]
[1721071358746,2.4444,3426.0,3424.8,2.91985]
[1721071358952,2.3024,3427.2,3426.2,2.91868]
[1721071359111,2.3024,3427.2,3425.9,2.91887]
[1721071359313,2.3024,3427.2,3425.6,5.688734]
[1721071359314,2.91799,3427.1,3425.6,5.688734]
[1721071359510,2.91799,3427.1,3425.1,2.769544]
[1721071359511,2.91953,3425.2,3425.1,2.769544]
[1721071359755,2.91953,3425.2,3423.9,0.3051522]
[1721071359756,2.4959,3425.1,3423.9,2.769544]
[1721071359909,2.91855,3426.4,3423.8,2.769544]
[1721071359910,2.91921,3425.6,3423.8,2.769544]
[1721071360104,2.4959,3426.3,3423.8,2.769544]
[1721071360105,2.91878,3426.1,3424.7,2.91994]
[1721071360353,2.91878,3426.1,3424.9,2.91973]
[1721071360558,2.4959,3426.3,3425.0,2.91962]
[1721071360847,2.91887,3426.0,3425.0,2.91962]
[1721071361068,2.91887,3426.0,3424.8,2.9198]
[1721071361246,2.9194,3425.4,3424.1,2.92039]
[1721071361544,2.91912,3425.7,3423.6,2.76615363]
[1721071361545,2.91911,3425.7,3424.3,2.92026]
[1721071361747,2.91911,3425.7,3424.2,2.9203]
[1721071361748,0.05767913,3426.2,3424.4,2.92019]
[1721071361933,2.91928,3425.5,3424.2,2.9203]
[1721071362261,2.4959,3426.3,3423.9,2.92056]
[1721071362465,2.4959,3426.3,3424.6,2.92003]
[1721071362759,2.91903,3425.8,3424.6,2.91997]
[1721071363049,2.4959,3426.3,3424.9,2.91975]
[1721071363264,2.4959,3426.3,3424.0,35.0]
[1721071363265,2.91923,3425.6,3424.5,2.92011]
[1721071363468,0.05767913,3426.2,3424.3,2.9203]
[1721071363607,0.05767913,3426.2,3424.1,2.92044]
[1721071363608,2.91948,3425.3,3424.1,2.92044]
[1721071363956,2.91878,3426.1,3423.5,35.0]
[1721071364169,0.822456,3430.6,3425.0,2.91967]
[1721071364170,2.9171,3428.1,3425.0,2.91967]
[1721071364465,2.3275,3428.3,3426.2,2.91862]
[1721071364670,2.3275,3428.3,3426.4,2.91844]
[1721071364812,2.3275,3428.3,3426.2,2.91862]
[1721071364813,2.91783,3427.2,3426.2,2.91862]
[1721071365006,2.918,3427.0,3426.0,2.91885]
[1721071365207,2.918,3427.0,3425.4,35.0]
[1721071365407,2.91704,3428.2,3426.5,2.91842]
[1721071365613,2.91742,3427.7,3426.5,2.91841]
[1721071365844,2.91699,3428.2,3425.8,2.919]
[1721071366043,2.91699,3428.2,3426.6,2.91832]
[1721071366358,2.3275,3428.3,3425.5,3.0]
[1721071366359,2.38517913,3428.3,3425.9,35.0]
[1721071366651,2.91758,3427.5,3426.3,2.91852]
[1721071366821,2.91758,3427.5,3426.4,2.9185]
[1721071367021,2.91758,3427.5,3426.2,2.9186]
[1721071367332,2.91758,3427.5,3426.3,2.91855]
[1721071367333,2.91764,3427.5,3426.3,2.91855]
[1721071367536,2.91764,3427.5,3425.9,35.0]
[1721071367537,2.91752,3427.6,3426.4,2.9185]
[1721071367741,2.91752,3427.6,3426.5,2.91838]
[1721071367923,2.91759,3427.5,3426.2,2.91867]
[1721071368274,2.91774,3427.4,3426.1,2.91873]
[1721071368754,2.91749,3427.6,3425.9,37.91891]
[1721071368955,2.91732,3427.9,3426.1,2.91871]
[1721071369159,2.91732,3427.9,3425.9,35.0]
[1721071369317,2.91732,3427.9,3426.9,2.91802]
[1721071369514,2.91732,3427.9,3427.0,2.91796]
[1721071369719,2.91742,3427.7,3426.4,2.91847]
[1721071369963,2.91742,3427.7,3426.1,2.9187]
[1721071370138,2.91742,3427.7,3425.9,35.0]
[1721071370139,2.91742,3427.7,3426.4,2.9185]
[1721071370312,2.91742,3427.7,3425.9,35.0]
[1721071370313,2.91761,3427.5,3426.2,2.91867]
[1721071370515,2.91768,3427.4,3426.2,2.91867]
[1721071370770,2.91768,3427.4,3426.3,2.91858]
[1721071371069,2.91806,3427.0,3425.7,2.91907]
[1721071371413,2.91785,3427.2,3425.7,2.91907]
[1721071371414,2.91785,3427.2,3425.9,2.91889]
[1721071371965,2.91785,3427.2,3426.0,2.91883]
[1721071372171,2.91785,3427.2,3425.8,2.91902]
[1721071372172,2.91766,3427.4,3426.5,2.91841]
[1721071372317,2.9175,3427.6,3426.5,2.91841]
[1721071372318,2.9175,3427.6,3426.7,2.91819]
[1721071372518,2.91733,3427.8,3426.7,2.91819]
[1721071372831,2.91733,3427.8,3426.8,2.91815]
[1721071373053,2.91733,3427.8,3426.6,2.91831]
[1721071373273,2.9175,3427.6,3426.3,2.91859]
[1721071373434,2.91732,3427.9,3427.0,2.91799]
[1721071373638,5.24441,3428.3,3427.4,2.91764]
[1721071373956,5.24441,3428.3,3427.5,2.91756]
[1721071373957,2.3275,3428.3,3427.5,2.91756]
[1721071374259,2.3275,3428.3,3426.4,3.0]
[1721071374260,2.3275,3428.3,3427.6,0.05833545]
[1721071374588,2.3275,3428.3,3426.6,1.5]
[1721071374589,2.3275,3428.3,3427.5,2.91757]
[1721071374716,2.3275,3428.3,3426.3,2.91859]
[1721071374717,4.16243174,3428.3,3425.9,1.18025171]
[1721071375079,1.24546174,3428.3,3427.3,2.91768]
[1721071375251,1.24546174,3428.3,3427.4,2.91764]
[1721071375419,1.24546174,3428.3,3427.6,2.91749]
[1721071375618,1.24546174,3428.3,3426.3,5.91854]
[1721071375619,2.91724,3427.9,3426.6,2.91832]
[1721071375821,1.24546174,3428.3,3426.6,2.91832]
[1721071376069,4.16237174,3428.3,3427.1,2.91788]
[1721071376219,1.24546174,3428.3,3427.6,2.91749]
[1721071376422,1.24546174,3428.3,3427.4,2.91766]
[1721071377057,1.24546174,3428.3,3427.2,2.91781]
[1721071377058,1.24546174,3428.3,3426.4,38.0]
[1721071377269,1.24546174,3428.3,3427.0,2.91799]
[1721071377417,4.16236174,3428.3,3427.1,2.91786]
[1721071377618,2.91699,3428.2,3426.5,2.91841]
[1721071377854,2.91699,3428.2,3425.7,0.59012585]
[1721071377855,2.91747,3427.7,3426.6,2.91832]
[1721071378463,2.91747,3427.7,3426.7,2.91825]
[1721071378773,2.91702,3428.2,3427.2,2.91777]
[1721071379067,2.91701,3428.2,3427.1,2.9179]
[1721071379236,2.91719,3428.0,3426.8,2.91815]
[1721071380034,2.91719,3428.0,3426.9,2.91806]
[1721071380369,2.91719,3428.0,3425.9,0.50482656]
[1721071380370,2.91788,3427.2,3426.1,2.75959699]
[1721071380538,2.97493913,3427.9,3425.9,2.91885]
[1721071380539,0.05767913,3427.9,3425.9,2.91885]
[1721071381061,2.91807,3427.0,3425.6,2.91916]
[1721071381422,2.91805,3427.0,3425.6,2.75959699]
[1721071381627,2.91805,3427.0,3425.9,2.91893]
[1721071382045,2.91806,3427.0,3425.4,35.0]
[1721071382347,2.91809,3426.9,3425.8,2.91897]
[1721071383162,2.91828,3426.7,3425.6,2.91914]
[1721071383377,2.91852,3426.4,3425.0,2.91965]
[1721071383583,2.91852,3426.4,3424.6,2.7616038]
[1721071383584,0.05767913,3426.3,3424.6,2.7616038]
[1721071383872,2.91921,3425.6,3424.6,2.91999]
[1721071384176,2.91921,3425.6,3423.7,0.50502035]
[1721071384177,2.91874,3426.2,3424.2,2.7616038]
[1721071384327,2.91874,3426.2,3425.1,2.9196]
[1721071384664,2.4204,3426.6,3424.1,2.92046]
[1721071384665,5.33874,3426.6,3425.5,2.91922]
[1721071384821,5.33874,3426.6,3425.5,2.91921]
[1721071385023,5.3388,3426.6,3424.7,5.68234132]
[1721071385239,2.91843,3426.5,3425.5,2.91922]
[1721071385459,2.91843,3426.5,3425.6,2.91915]
[1721071385659,2.4204,3426.6,3425.0,2.91965]
[1721071385845,2.4204,3426.6,3424.6,3.0]
[1721071385846,2.2738,3427.4,3426.3,2.91857]
[1721071386049,2.2738,3427.4,3425.1,3.0]
[1721071386050,2.91818,3426.8,3426.0,2.91884]
[1721071386236,2.91826,3426.7,3425.4,2.91935]
[1721071386459,2.91826,3426.7,3424.8,2.76243132]
[1721071386460,2.2772,3426.4,3424.8,2.76243132]
[1721071386642,0.291826,3426.7,3423.8,2.92067]
[1721071386643,2.91978,3425.0,3423.8,2.92067]
[1721071386953,2.91941,3425.4,3424.2,2.92037]
[1721071386954,2.91954,3425.2,3424.2,2.92037]
[1721071387126,2.91954,3425.2,3424.2,2.92033]
[1721071387460,2.91963,3425.1,3424.3,2.9203]
[1721071387761,2.91922,3425.6,3424.5,2.92007]
[1721071388062,2.91993,3424.8,3423.4,2.76863762]
[1721071388281,2.91989,3424.8,3423.9,2.92063]
[1721071389070,2.9197,3425.0,3424.0,2.92049]
[1721071389291,2.2772,3425.8,3424.1,0.05839242]
[1721071389487,2.2772,3425.8,3423.1,3.101]
[1721071389488,2.2772,3425.8,3425.3,2.9194]
[1721071389827,2.2772,3425.8,3423.9,2.76863762]
[1721071389828,2.2772,3425.8,3424.0,35.0]
[1721071390238,2.2772,3425.8,3423.7,2.9208]
[1721071390239,2.3153,3424.9,3423.7,2.9208]
[1721071390395,2.91994,3424.8,3423.7,2.9208]
[1721071390683,2.91996,3424.7,3423.7,2.9208]
[1721071390901,2.3153,3424.9,3424.6,2.92004]
[1721071391189,2.3153,3425.8,3424.0,2.92051]
[1721071391400,2.3153,3425.8,3425.0,2.91963]
[1721071391699,2.3153,3425.8,3425.1,2.91961]
[1721071392045,2.9183,3426.7,3424.4,0.0226045]
[1721071392046,5.16917,3426.8,3425.7,2.91911]
[1721071392471,5.16917,3426.8,3426.0,2.91879]
[1721071392472,2.251,3426.8,3426.0,2.91879]
[1721071392688,2.251,3426.8,3424.4,3.0226045]
[1721071392689,2.251,3426.8,3426.4,2.91851]
[1721071392891,2.91842,3426.6,3425.4,2.9193]
[1721071393191,2.91842,3426.6,3425.5,2.91927]
[1721071393345,2.91842,3426.6,3425.5,2.91926]
[1721071393552,2.251,3426.8,3426.2,2.9186]
[1721071393906,2.251,3426.8,3425.8,2.91894]
[1721071394348,5.16923,3426.8,3425.7,2.91903]
[1721071394550,2.91846,3426.5,3425.6,2.91919]
[1721071394846,2.91826,3426.7,3425.6,2.91916]
[1721071395051,2.251,3426.8,3425.9,2.91886]